bitfinex/quotes_ETHUSD_20260119
["timestamp","ask_amount","ask_price","bid_price","bid_amount"]
[1768855407627,6.9954506,3218.8,3218.4,0.00280344]
[1768855407933,0.7819549,3218.7,3218.4,0.00280344]
[1768855408229,2.06098161,3218.7,3218.4,0.00280344]
[1768855408726,3.1069409,3218.6,3218.4,0.00280344]
[1768855411032,6.2138818,3218.6,3218.4,0.00280344]
[1768855411537,0.7819549,3218.5,3218.0,0.95030027]
[1768855411719,0.7819549,3218.5,3218.0,0.002]
[1768855411923,1.53283857,3218.4,3218.0,0.002]
[1768855412298,1.53283857,3218.4,3218.0,0.95030027]
[1768855412720,1.53283857,3218.4,3218.0,0.002]
[1768855413030,0.7819549,3218.1,3218.0,0.002]
[1768855413227,1.1708831,3218.1,3218.0,0.002]
[1768855413427,0.7819549,3218.1,3218.0,0.002]
[1768855413630,3.10732707,3218.2,3218.0,0.002]
[1768855414840,0.513,3218.2,3218.0,0.002]
[1768855415132,3.62040713,3218.2,3218.0,0.002]
[1768855415509,4.40236203,3218.2,3218.0,0.002]
[1768855416717,0.7819549,3218.1,3218.0,0.002]
[1768855417121,3.10752019,3218.0,3217.9,0.000804]
[1768855417842,3.88947509,3218.0,3217.9,0.000804]
[1768855420539,0.7819549,3217.9,3217.5,0.95110459]
[1768855420837,1.21269953,3217.8,3217.5,0.00280432]
[1768855421527,1.99465443,3217.8,3217.5,0.00280432]
[1768855424958,3.10780992,3217.7,3217.5,0.00280432]
[1768855428141,6.99757474,3217.7,3217.1,0.93614985]
[1768855428352,6.99757474,3217.7,3217.2,0.93495481]
[1768855432664,6.99757474,3217.7,3217.5,0.002]
[1768855432960,0.75105747,3217.6,3217.5,0.002]
[1768855435845,3.85896398,3217.6,3217.5,0.002]
[1768855438877,0.513,3217.8,3217.6,0.91485135]
[1768855439857,0.513,3217.8,3217.5,0.002]
[1768855441944,3.10780992,3217.7,3217.5,0.002]
[1768855445089,3.10775685,3217.8,3217.5,0.002]
[1768855445318,0.513,3217.8,3217.5,0.91685135]
[1768855445440,0.00080432,3217.9,3217.5,0.91685135]
[1768855446078,0.97011853,3218.3,3217.5,0.91685135]
[1768855446079,0.513,3218.2,3217.7,0.91485135]
[1768855446378,0.000804,3218.3,3217.7,0.91485135]
[1768855446572,3.6199409,3218.6,3218.0,0.91485135]
[1768855446949,6.7268818,3218.6,3218.0,0.91485135]
[1768855447357,7.69619633,3218.6,3218.0,0.91485135]
[1768855447878,0.96931453,3218.5,3218.0,0.91485135]
[1768855448386,0.96931453,3218.5,3217.9,0.00080408]
[1768855448387,0.96931453,3218.4,3217.9,0.00080408]
[1768855449769,0.96931453,3218.2,3217.9,0.00080408]
[1768855449970,0.513,3218.1,3217.9,0.00080408]
[1768855450879,0.96931453,3218.0,3217.9,0.00080408]
[1768855451080,0.96931453,3218.0,3217.5,0.0028044]
[1768855451249,0.96931453,3217.8,3217.5,0.0028044]
[1768855452150,4.59012445,3217.7,3217.5,0.0028044]
[1768855452455,0.96931453,3217.6,3217.5,0.0028044]
[1768855454781,0.96931453,3217.5,3216.6,0.63928277]
[1768855454979,6.21661798,3217.6,3216.6,0.63609117]
[1768855454980,0.0008052,3217.3,3216.6,0.63609117]
[1768855455170,0.0008052,3217.3,3216.6,0.63689301]
[1768855455368,0.0008052,3217.3,3216.7,0.63609117]
[1768855457290,0.97011973,3217.3,3216.7,0.63609117]
[1768855458805,0.97011973,3217.3,3216.6,0.00080184]
[1768855459702,0.96931453,3217.1,3216.6,0.63689301]
[1768855461211,4.07780069,3217.0,3216.6,0.63689301]
[1768855461408,4.07780069,3217.0,3216.6,0.00080184]
[1768855461578,0.96931453,3216.9,3216.6,0.00080184]
[1768855463007,3.62148616,3217.0,3216.6,0.00080184]
[1768855463209,0.92511039,3217.1,3216.6,0.63689301]
[1768855463414,0.513,3217.1,3216.6,0.63689301]
[1768855463616,3.10900254,3217.3,3216.6,0.63689301]
[1768855463779,0.513,3217.2,3216.7,0.63609117]
[1768855463978,3.10901699,3217.3,3216.7,0.63609117]
[1768855464180,0.0008052,3217.3,3216.7,0.63609117]
[1768855464384,3.10902115,3217.3,3216.7,0.63609117]
[1768855464598,4.03413154,3217.3,3216.7,0.63609117]
[1768855465083,0.0008052,3217.3,3216.7,0.63609117]
[1768855465719,0.0008052,3217.3,3216.8,0.63609117]
[1768855466217,0.92591559,3217.3,3216.8,0.63609117]
[1768855467401,4.034164,3217.3,3216.8,0.63609117]
[1768855468022,0.0008052,3217.3,3216.8,0.63609117]
[1768855468205,4.03415381,3217.3,3216.8,0.63609117]
[1768855469522,4.03415381,3217.3,3216.9,0.002]
[1768855469727,0.001,3217.0,3216.9,0.002]
[1768855472029,0.92611039,3217.0,3216.6,0.00080184]
[1768855472217,0.92511039,3216.9,3216.6,0.00080184]
[1768855474133,4.03369955,3216.9,3216.6,0.00080184]
[1768855475528,0.92511039,3216.9,3216.6,0.00080184]
[1768855476931,0.92511039,3216.8,3216.6,0.00080184]
[1768855478303,5.26192148,3217.0,3216.6,0.00080184]
[1768855479631,2.15338531,3217.0,3216.6,0.00080184]
[1768855479825,1.43911039,3217.0,3216.6,0.00080184]
[1768855480024,4.54761064,3217.0,3216.6,0.00080184]
[1768855481749,4.54759655,3217.0,3216.9,0.002]
[1768855481949,4.54759655,3217.0,3216.3,0.63809117]
[1768855481950,0.90739178,3216.8,3216.1,0.64089253]
[1768855483335,0.90659042,3216.7,3216.1,0.00080136]
[1768855483749,0.90659042,3216.7,3216.1,0.64089253]
[1768855484054,0.90659042,3216.6,3216.1,0.64089253]
[1768855486758,3.10887854,3216.6,3216.1,0.64089253]
[1768855486932,0.90659042,3216.5,3216.1,0.64089253]
[1768855489659,0.90659042,3216.5,3216.1,0.00080136]
[1768855493670,0.90659042,3216.5,3216.4,0.002]
[1768855499692,4.01280071,3216.7,3216.4,0.002]
[1768855499855,0.90397928,3216.6,3216.4,0.002]
[1768855501083,0.51380136,3216.8,3216.4,0.64209117]
[1768855501253,0.00080136,3216.8,3216.4,0.64209117]
[1768855502691,0.90478064,3216.8,3216.4,0.002]
[1768855502984,0.90397928,3216.7,3216.4,0.002]
[1768855511489,0.00080136,3216.8,3216.4,0.002]
[1768855511721,0.00180184,3217.0,3216.5,0.63928981]
[1768855512202,0.90578112,3217.0,3216.4,0.00280144]
[1768855512409,3.11030327,3217.0,3216.4,0.00280144]
[1768855512596,0.90397928,3216.9,3216.4,0.00280144]
[1768855512984,0.90397928,3216.8,3216.4,0.00280144]
[1768855513875,0.90397928,3216.7,3216.4,0.00280144]
[1768855516803,5.23783996,3216.9,3216.4,0.64209125]
[1768855517181,1.61624845,3216.9,3216.4,0.64209125]
[1768855517506,0.90397928,3216.7,3216.4,0.00280144]
[1768855519210,0.90397928,3216.7,3216.1,0.00080136]
[1768855519903,0.90397928,3216.5,3216.1,0.00080136]
[1768855521799,0.513,3216.5,3216.1,0.64009117]
[1768855522503,1.41697928,3216.5,3216.1,0.64009117]
[1768855525324,0.513,3216.5,3216.1,0.64009117]
[1768855527505,4.54215763,3216.5,3216.1,0.64009117]
[1768855527817,4.54215763,3216.5,3216.1,0.00080136]
[1768855529101,1.43318393,3216.5,3216.1,0.00080136]
[1768855529398,1.43318393,3216.5,3216.4,0.002]
[1768855529628,1.88739415,3216.5,3216.4,0.002]
[1768855534502,0.96721022,3216.5,3216.4,0.002]
[1768855538837,0.513,3216.6,3216.4,0.64128981]
[1768855539408,0.513,3216.6,3216.4,0.002]
[1768855540661,3.62196644,3216.6,3216.4,0.002]
[1768855541221,4.53223783,3216.6,3216.4,0.002]
[1768855541721,5.29641985,3216.6,3216.4,0.002]
[1768855541925,0.91027139,3216.5,3216.1,0.00080136]
[1768855542122,7.4951149,3216.6,3216.0,1e-08]
[1768855542123,0.91027139,3216.3,3216.0,1e-08]
[1768855542943,3.10925937,3216.2,3216.0,1e-08]
[1768855544055,4.01948027,3216.3,3216.0,1e-08]
[1768855544267,0.91027139,3216.3,3216.0,1e-08]
[1768855547736,0.91027139,3216.2,3216.0,1e-08]
[1768855547939,0.91027139,3216.1,3216.0,1e-08]
[1768855548968,4.01962744,3216.1,3216.0,1e-08]
[1768855551276,0.91027139,3216.0,3215.4,0.63928981]
[1768855551467,2.25473674,3216.0,3215.4,0.63928981]
[1768855552056,0.91027139,3215.9,3215.4,0.63928981]
[1768855552770,4.01983549,3215.9,3215.4,0.63928981]
[1768855556009,0.91027139,3215.9,3215.4,0.63928981]
[1768855558917,3.62229942,3216.2,3215.4,0.63928981]
[1768855559131,4.53479271,3216.2,3215.4,0.63928981]
[1768855559299,0.91249329,3216.1,3215.4,0.63928981]
[1768855559476,0.91249329,3216.1,3215.5,0.63928981]
[1768855561021,4.02186072,3216.1,3215.5,0.63928981]
[1768855564278,4.02186072,3216.1,3215.7,0.002]
[1768855564982,0.91249329,3216.1,3215.7,0.002]
[1768855567008,3.62231073,3216.2,3215.7,0.64128981]
[1768855567009,0.513,3216.2,3215.7,0.64128981]
[1768855568083,1.42549329,3216.2,3215.7,0.64128981]
[1768855568285,0.91249329,3216.0,3215.7,0.002]
[1768855568515,0.91249329,3216.0,3215.4,1e-08]
[1768855568713,0.91249329,3215.8,3215.0,0.63928981]
[1768855568918,0.91249329,3215.5,3214.9,0.002]
[1768855570197,0.91249329,3215.3,3214.9,0.002]
[1768855572316,0.91249329,3215.2,3214.9,0.002]
[1768855572854,0.35471019,3214.9,3213.4,1.15203314]
[1768855573111,0.35271019,3213.9,3212.6,0.0078647]
[1768855573312,0.35471019,3213.7,3212.7,0.98979052]
[1768855574195,3.11177495,3213.6,3212.7,0.98979052]
[1768855574387,0.513,3213.5,3212.7,0.98979052]
[1768855574586,3.11177495,3213.6,3212.7,0.98979052]
[1768855574790,0.513,3213.5,3212.7,0.98979052]
[1768855575116,0.513,3213.4,3212.7,0.98979052]
[1768855576282,3.11183035,3213.6,3212.8,0.98979052]
[1768855576487,0.513,3213.5,3213.1,0.98979052]
[1768855580225,3.62488062,3213.5,3213.1,0.98979052]
[1768855580847,3.11188062,3213.5,3213.1,0.98979052]
[1768855581029,4.28371985,3213.5,3213.1,0.98979052]
[1768855582157,0.35471019,3213.4,3212.2,0.0008032]
[1768855582361,0.35471019,3213.4,3211.5,0.99059324]
[1768855582362,0.35271019,3212.2,3211.5,0.99059324]
[1768855582518,0.90282496,3211.9,3211.5,0.44047847]
[1768855582714,0.90282496,3211.9,3211.4,0.002]
[1768855583220,0.514,3211.8,3211.5,0.95264469]
[1768855583623,0.00080272,3211.9,3211.5,0.95264469]
[1768855583851,0.00080272,3211.9,3211.6,0.95264469]
[1768855587781,0.00080272,3211.9,3211.5,0.95264469]
[1768855588242,0.00080272,3211.9,3211.4,0.002]
[1768855588243,0.00080272,3211.9,3211.7,0.95264469]
[1768855589044,0.514,3212.7,3212.0,0.95264469]
[1768855589548,1.41682488,3212.7,3212.0,0.95264469]
[1768855590173,0.90282488,3213.0,3212.0,0.95264469]
[1768855590375,0.90282488,3213.0,3211.9,0.00080272]
[1768855590376,4.0160348,3213.2,3212.2,0.95264469]
[1768855590562,0.514,3213.1,3212.2,0.95344797]
[1768855590768,1.41762808,3213.1,3212.2,0.95344797]
[1768855591171,0.90362808,3213.1,3212.2,0.95344797]
[1768855591479,0.514,3213.0,3212.3,0.95264469]
[1768855591680,0.90362808,3213.1,3212.3,0.95264469]
[1768855591877,3.11320992,3213.2,3212.3,0.95264469]
[1768855592196,0.90362808,3213.0,3212.3,0.95264469]
[1768855592650,0.90362808,3212.9,3212.3,0.95264469]
[1768855593680,3.62633614,3213.1,3212.4,0.95264469]
[1768855593868,0.90362808,3213.0,3212.4,0.95264469]
[1768855594520,0.514,3212.9,3212.4,0.95264469]
[1768855594816,3.11317514,3213.2,3212.5,0.95264469]
[1768855595121,0.514,3213.0,3212.5,0.95264469]
[1768855595803,0.90462808,3213.2,3212.5,0.95264469]
[1768855596012,1.306301,3213.2,3212.5,0.95264469]
[1768855596173,0.514,3213.1,3212.5,0.95264469]
[1768855596872,0.001,3213.2,3212.6,0.95264469]
[1768855597202,0.514,3213.1,3212.6,0.95264469]
[1768855598881,0.514,3213.1,3212.7,0.95264469]
[1768855600801,0.001,3212.9,3212.7,0.95264469]
[1768855604007,0.001,3212.9,3212.8,1.08487824]
[1768855606412,0.001,3212.9,3212.6,1.08487824]
[1768855606804,0.001,3212.9,3212.6,4.19761012]
[1768855607314,0.001,3212.9,3212.6,1.08487824]
[1768855607609,0.001,3212.9,3212.6,4.19761631]
[1768855607809,0.001,3212.9,3212.5,4.19769438]
[1768855607810,1.13574991,3212.9,3212.5,4.19769438]
[1768855608014,1.13574991,3212.9,3212.5,3.11281614]
[1768855608380,1.13574991,3212.9,3212.4,4.19776871]
[1768855608597,1.13574991,3212.9,3212.5,1.08487824]
[1768855608997,0.001,3212.9,3212.5,1.08487824]
[1768855609313,0.001,3212.9,3212.6,3.11273822]
[1768855609917,0.001,3212.9,3212.6,1.08487824]
[1768855610099,1.13474991,3213.3,3212.3,1.08487824]
[1768855610304,0.514,3213.1,3212.5,1.08487824]
[1768855612095,0.514,3213.1,3212.7,1.08487824]
[1768855612596,1.13474991,3213.5,3212.7,1.08487824]
[1768855612798,5.81504661,3213.9,3212.7,1.08487824]
[1768855612799,0.001,3212.9,3212.7,1.08487824]
[1768855613118,1.13474991,3213.8,3212.9,1.49134155]
[1768855613119,0.514,3213.7,3212.9,1.49134155]
[1768855613306,1.97717909,3213.7,3212.9,1.49134155]
[1768855613618,1.46317909,3213.6,3212.9,1.49134155]
[1768855614695,1.46317909,3214.3,3213.0,1.49134155]
[1768855614887,1.46317909,3214.1,3213.0,1.49134155]
[1768855615087,1.46317909,3214.1,3212.9,6.22487871]
[1768855615088,1.46317909,3214.1,3213.2,1.49134155]
[1768855616104,0.514,3214.2,3213.4,1.49134155]
[1768855616334,1.97717909,3214.2,3213.4,1.49134155]
[1768855617231,1.97717909,3214.2,3213.5,3.11187179]
[1768855617417,1.97717909,3214.2,3213.6,1.49134155]
[1768855619343,1.46317909,3214.2,3213.6,1.49134155]
[1768855620950,1.46317909,3214.2,3213.7,1.49134155]
[1768855622746,4.57437432,3214.2,3213.7,1.49134155]
[1768855622938,3.11119523,3214.2,3213.7,1.49134155]
[1768855623136,1.46317909,3214.1,3213.7,1.49134155]
[1768855625274,0.001,3213.8,3213.7,1.49134155]
[1768855625571,1.46317909,3214.1,3213.7,1.49134155]
[1768855625974,4.57449676,3214.1,3213.4,1.49134155]
[1768855627574,4.57449676,3214.1,3213.4,1.85146234]
[1768855627737,1.46317909,3214.1,3213.5,1.49134155]
[1768855631800,0.514,3214.2,3213.6,1.49134155]
[1768855632898,1.97717909,3214.2,3213.6,1.49134155]
[1768855633204,1.46317909,3214.2,3213.7,1.49134155]
[1768855637304,1.46317909,3214.2,3213.7,1.49334155]
[1768855637697,0.001,3213.9,3213.7,1.49334155]
[1768855643021,2.41269537,3215.0,3213.8,2.26919277]
[1768855643193,3.11032316,3215.1,3213.8,2.26919277]
[1768855643194,2.41269537,3214.7,3213.9,1.05228709]
[1768855643401,2.41269537,3214.7,3213.9,3.32147986]
[1768855644314,2.92669537,3214.7,3213.9,3.32147986]
[1768855644530,2.92669537,3214.7,3214.0,3.11138767]
[1768855644690,2.92669537,3214.7,3214.0,3.66441576]
[1768855644889,2.92669537,3214.7,3214.0,5.93360853]
[1768855648221,2.92669537,3214.7,3214.1,2.26919277]
[1768855648554,2.41269537,3215.7,3214.3,2.26919277]
[1768855648730,2.41269537,3215.3,3214.3,2.26919277]
[1768855649137,0.514,3215.2,3214.3,2.26919277]
[1768855649365,2.41269537,3215.1,3214.3,2.26919277]
[1768855649724,0.001,3214.4,3214.3,2.26919277]
[1768855649932,2.41269537,3215.1,3214.1,2.26919277]
[1768855650140,2.41269537,3215.1,3214.3,2.26919277]
[1768855650457,2.41269537,3215.1,3214.4,2.26919277]
[1768855650658,2.41269537,3215.0,3214.4,2.26919277]
[1768855653324,2.92669537,3215.0,3214.5,5.38009648]
[1768855653957,0.514,3214.9,3214.6,2.26919277]
[1768855654156,2.41269537,3215.2,3214.6,2.26919277]
[1768855654328,0.514,3215.1,3214.6,2.26919277]
[1768855655553,0.514,3215.1,3214.6,5.37998286]
[1768855656051,0.514,3215.0,3214.6,5.37998286]
[1768855656641,0.514,3215.0,3214.6,2.26919277]
[1768855656840,0.514,3215.0,3214.6,5.37999666]
[1768855657758,0.514,3215.0,3214.7,2.26919277]
[1768855660084,0.514,3215.0,3214.7,5.37990178]
[1768855660576,0.514,3215.1,3214.8,2.26919277]
[1768855665159,2.41269537,3215.3,3214.8,2.26919277]
[1768855665352,0.514,3215.1,3214.8,2.26919277]
[1768855667257,5.85050148,3215.5,3214.8,2.26919277]
[1768855667458,0.514,3215.4,3214.9,2.7189804]
[1768855667666,3.25449686,3215.4,3214.9,2.7189804]
[1768855673873,0.001,3215.1,3214.9,2.7189804]
[1768855677179,2.93051584,3215.3,3214.9,2.7189804]
[1768855678463,0.514,3215.4,3214.9,2.7189804]
[1768855678663,3.44451584,3215.4,3214.9,2.7189804]
[1768855682885,3.44451584,3215.4,3214.7,2.91519606]
[1768855683185,3.44451584,3215.4,3214.5,2.91519606]
[1768855683477,3.62404649,3215.4,3214.6,2.91519606]
[1768855683669,2.93051584,3215.3,3214.6,2.91519606]
[1768855685484,2.93051584,3215.3,3214.9,0.002]
[1768855685862,0.001,3215.1,3214.9,0.002]
[1768855692068,2.93151584,3215.1,3214.9,0.002]
[1768855693486,0.001,3215.1,3214.9,0.002]
[1768855693990,0.001,3215.1,3214.9,2.91719606]
[1768855694182,2.93051584,3215.3,3214.9,3.5199854]
[1768855696194,2.93051584,3215.5,3214.9,3.5199854]
[1768855696365,0.513,3215.4,3215.0,2.91519606]
[1768855698068,3.44351584,3215.4,3215.0,2.91519606]
[1768855698269,3.44351584,3215.4,3214.9,0.002]
[1768855698791,3.44351584,3215.4,3214.9,2.91719606]
[1768855699302,3.44351584,3215.4,3214.9,3.20891567]
[1768855700568,3.44351584,3215.4,3215.0,2.91519606]
[1768855704703,3.44351584,3215.4,3214.9,0.29371961]
[1768855705805,3.44351584,3215.4,3214.9,6.78849336]
[1768855706193,3.44351584,3215.4,3215.0,3.38426459]
[1768855709112,3.44351584,3215.4,3215.2,0.002]
[1768855709623,0.513,3215.4,3215.2,0.002]
[1768855714218,3.34313508,3215.7,3215.2,3.38626459]
[1768855714423,0.513,3215.5,3215.2,3.38626459]
[1768855714722,0.513,3215.5,3215.2,0.65166683]
[1768855715021,0.513,3215.5,3215.2,0.002]
[1768855716120,3.34313508,3215.6,3215.2,0.002]
[1768855716329,0.001,3216.0,3215.2,3.38626459]
[1768855716523,0.513,3215.9,3215.2,3.38626459]
[1768855717606,3.85613508,3215.9,3215.2,3.38626459]
[1768855717807,3.85613508,3215.9,3215.4,3.38426459]
[1768855719300,0.513,3215.9,3215.4,3.38426459]
[1768855720426,0.001,3216.0,3215.5,3.38426459]
[1768855720829,0.514,3216.0,3215.5,3.38426459]
[1768855721126,0.001,3215.6,3215.5,3.38426459]
[1768855721332,0.514,3216.0,3215.6,3.47129102]
[1768855729737,0.001,3216.0,3215.6,3.47129102]
[1768855730907,3.39149893,3216.0,3215.6,3.47129102]
[1768855732744,0.001,3215.7,3215.6,3.47129102]
[1768855733038,3.39149893,3216.0,3215.6,3.47129102]
[1768855739072,3.39149893,3216.0,3215.5,0.4416591]
[1768855739350,3.39149893,3216.0,3215.5,4.20551952]
[1768855744453,0.001,3215.7,3215.5,4.20551952]
[1768855744623,3.39149893,3216.0,3215.6,0.42055195]
[1768855744823,3.39149893,3216.0,3215.5,3.76386042]
[1768855755249,0.001,3216.0,3215.6,3.76386042]
[1768855755633,0.001,3215.7,3215.6,3.76386042]
[1768855755830,0.001,3216.0,3215.6,3.76386042]
[1768855760484,0.001,3216.0,3215.7,3.76386042]
[1768855763951,0.001,3216.0,3215.7,4.45123531]
[1768855768292,0.001,3216.0,3215.7,3.76386042]
[1768855773478,0.001,3216.0,3215.8,3.82820414]
[1768855773691,0.513,3216.2,3215.8,3.82820414]
[1768855774413,0.513,3216.2,3215.8,6.9378289]
[1768855774587,0.513,3216.2,3215.9,3.82820414]
[1768855774768,0.513,3216.2,3216.0,0.69378289]
[1768855776305,0.513,3216.2,3215.7,6.93789757]
[1768855776485,4.52082437,3216.2,3215.7,6.93789757]
[1768855778997,0.001,3215.9,3215.8,3.82820414]
[1768855779196,4.52082437,3216.2,3215.8,3.82820414]
[1768855783129,0.513,3216.2,3215.8,6.93782304]
[1768855783432,0.513,3216.2,3215.9,4.84990815]
[1768855783634,3.83207195,3216.3,3215.9,4.84990815]
[1768855784025,3.83207195,3216.3,3215.9,0.6937823]
[1768855785308,3.83207195,3216.3,3215.3,3.8]
[1768855785309,3.83207195,3216.2,3215.4,7.26606343]
[1768855787132,3.83207195,3216.2,3215.5,3.10991904]
[1768855788038,6.94134823,3216.2,3215.4,7.26611293]
[1768855788341,3.83207195,3216.1,3215.4,7.26611293]
[1768855789714,3.83207195,3216.1,3215.5,4.15612585]
[1768855790636,3.83207195,3216.1,3215.7,0.002]
[1768855800342,0.513,3216.0,3215.7,0.002]
[1768855803167,0.513,3216.1,3215.7,4.01734907]
[1768855803633,0.513,3216.1,3216.0,0.0257086]
[1768855812887,3.83652758,3216.0,3215.4,0.002]
[1768855813175,4.34952758,3215.9,3215.4,4.01734907]
[1768855815057,6.94608223,3215.9,3215.4,4.01734907]
[1768855815230,3.83652758,3215.9,3215.4,4.01734907]
[1768855815432,0.513,3215.8,3215.4,4.01734907]
[1768855816427,0.50383969,3215.8,3215.4,4.01734907]
[1768855817247,0.513,3215.9,3215.4,4.73030165]
[1768855822773,3.83652758,3216.0,3215.5,4.01534907]
[1768855822939,3.10991664,3216.4,3215.5,4.01534907]
[1768855823131,0.513,3216.3,3215.5,4.01534907]
[1768855823379,0.513,3216.3,3215.7,4.09491508]
[1768855823736,0.513,3216.3,3215.8,4.09491508]
[1768855827671,0.513,3216.3,3215.9,4.09491508]
[1768855832479,0.00080136,3216.4,3215.9,4.09491508]
[1768855832642,0.00080136,3216.4,3215.9,4.80786766]
[1768855837000,0.001,3216.1,3215.9,4.80786766]
[1768855837343,0.00080136,3216.4,3216.0,4.09491508]
[1768855841178,0.00080136,3216.4,3216.0,7.20436379]
[1768855841377,0.00080136,3216.4,3216.1,4.14284757]
[1768855841583,4.63103835,3216.7,3216.2,4.52121017]
[1768855841895,4.63103835,3216.7,3216.2,4.14284757]
[1768855842276,7.73982478,3216.7,3216.2,4.14284757]
[1768855842489,4.11803835,3216.6,3216.2,4.14284757]
[1768855844576,7.74054932,3216.8,3216.2,4.14284757]
[1768855844776,0.00080144,3216.8,3216.2,4.14284757]
[1768855844996,0.00080144,3216.8,3216.3,4.55713233]
[1768855845967,4.11883979,3216.8,3216.3,4.55713233]
[1768855848314,4.11883979,3216.8,3216.1,4.14284757]
[1768855848315,4.11803835,3216.7,3216.1,4.14284757]
[1768855848476,4.11803835,3216.7,3216.1,7.25219851]
[1768855848885,0.001,3216.5,3216.1,7.25219851]
[1768855849185,0.001,3216.5,3216.1,7.25218513]
[1768855851904,0.001,3216.5,3216.1,3.10933756]
[1768855852115,0.001,3216.5,3216.2,4.14284757]
[1768855852403,0.001,3216.5,3216.2,4.91944623]
[1768855857615,0.001,3216.5,3216.2,0.77659866]
[1768855859118,0.001,3216.5,3216.2,4.10359126]
[1768855867094,0.001,3216.5,3216.1,4.10359126]
[1768855870327,4.34213478,3216.5,3216.0,0.00080144]
[1768855870531,4.34213478,3216.5,3216.1,0.513]
[1768855871506,4.34213478,3216.5,3216.4,0.002]
[1768855877737,1.23213414,3216.5,3216.4,0.002]
[1768855877938,4.34113478,3216.7,3216.4,0.002]
[1768855889740,7.44991825,3216.7,3216.4,0.002]
[1768855890718,4.34113478,3216.7,3216.4,0.002]
[1768855892448,7.4499165,3216.7,3216.4,0.002]
[1768855893417,4.34113478,3216.7,3216.4,0.002]
[1768855898667,0.00080144,3216.8,3216.4,0.002]
[1768855898829,4.06648635,3216.8,3216.4,0.002]
[1768855902831,7.17516971,3216.8,3216.4,0.002]
[1768855903036,3.85803068,3216.7,3216.4,0.002]
[1768855906777,6.96681018,3216.7,3216.4,0.002]
[1768855907677,3.85803068,3216.7,3216.4,0.002]
[1768855908552,3.10951699,3216.8,3216.4,0.002]
[1768855908752,0.00080144,3216.8,3216.4,4.16833204]
[1768855913696,4.05949298,3216.5,3216.0,0.00280144]
[1768855913987,4.05949298,3216.3,3215.7,0.002]
[1768855915874,4.03429338,3216.1,3215.7,0.002]
[1768855916070,5.05957459,3216.0,3215.7,0.002]
[1768855918261,3.10954942,3215.9,3215.7,0.002]
[1768855918467,4.00966935,3215.8,3215.7,0.002]
[1768855919078,4.00966935,3215.8,3215.4,4.00190819]
[1768855919370,4.00966935,3215.8,3215.6,0.002]
[1768855920272,3.10974282,3215.7,3215.6,0.002]
[1768855921174,4.13263898,3215.7,3215.2,0.002]
[1768855921376,4.07931672,3215.6,3215.2,0.002]
[1768855922216,4.59231672,3215.6,3215.2,0.002]
[1768855922514,4.07238275,3215.4,3215.2,0.002]
[1768855922720,5.0900544,3215.3,3215.2,0.002]
[1768855924908,8.20018409,3215.3,3215.2,0.002]
[1768855925601,1.02922552,3215.3,3215.2,0.002]
[1768855926814,3.62288332,3215.6,3215.2,4.00310499]
[1768855929915,6.73276664,3215.6,3215.2,4.00310499]
[1768855933396,10.81208336,3215.6,3215.0,4.00110499]
[1768855933723,4.07931672,3215.5,3215.0,4.00110499]
[1768855933919,1.08120834,3215.4,3215.0,4.00110499]
[1768855934216,4.07931672,3215.3,3214.9,0.002]
[1768855934615,4.07931672,3215.3,3214.9,4.00310499]
[1768855934824,4.19129677,3215.4,3214.9,4.00310499]
[1768855935039,8.27061349,3215.4,3214.9,4.00310499]
[1768855935923,4.59231672,3215.6,3214.9,4.00310499]
[1768855936230,3.62289441,3215.6,3214.9,4.00310499]
[1768855936426,7.70221113,3215.6,3214.9,4.00310499]
[1768855936628,4.07931672,3215.5,3214.9,4.00310499]
[1768855936922,7.18928551,3215.5,3214.9,4.00310499]
[1768855937316,4.07931672,3215.5,3214.9,4.00310499]
[1768855937519,3.10943081,3216.1,3214.9,4.00310499]
[1768855937520,4.07931672,3216.3,3215.0,4.00110499]
[1768855937822,4.07931672,3216.0,3215.0,4.00110499]
[1768855938437,3.2,3215.7,3215.0,4.00110499]
[1768855939411,3.10964612,3215.8,3215.0,7.11148863]
[1768855939612,4.07931672,3215.9,3215.1,4.00110499]
[1768855940729,4.07931672,3216.3,3215.5,4.00110499]
[1768855940933,3.10921523,3216.3,3215.5,4.00110499]
[1768855941925,3.10921523,3216.3,3215.6,4.00110499]
[1768855944430,6.83551706,3216.3,3215.6,4.00110499]
[1768855945598,3.72630183,3216.2,3215.6,4.00110499]
[1768855945805,3.72630183,3216.2,3215.6,4.76397488]
[1768855945806,7.63557881,3216.2,3215.6,4.76397488]
[1768855950452,0.8,3216.2,3215.6,4.76397488]
[1768855950621,0.8,3216.2,3215.7,4.08623463]
[1768855953974,4.52630183,3216.2,3215.7,4.08623463]
[1768855955034,0.001,3216.0,3215.7,4.08623463]
[1768855963126,0.001,3216.0,3215.4,4.01636315]
[1768855963643,4.14675522,3216.0,3215.4,4.01636315]
[1768855963856,4.14575522,3215.9,3215.3,4.01836315]
[1768855965727,4.14575522,3215.8,3215.3,4.01836315]
[1768855966630,0.001,3215.7,3215.3,4.01836315]
[1768855968863,4.14675522,3215.7,3215.3,4.01836315]
[1768855973365,0.001,3215.7,3215.3,4.01836315]
[1768855975257,0.001,3215.7,3215.3,7.1284849]
[1768855975444,0.001,3215.7,3215.4,4.56134679]
[1768855975964,4.21987412,3215.9,3215.4,4.56134679]
[1768855978164,0.001,3216.0,3215.4,4.56134679]
[1768855978362,0.001,3215.6,3215.4,4.56134679]
[1768855978663,4.22087412,3216.0,3215.5,4.56134679]
[1768855980466,0.00080144,3216.4,3215.9,4.56134679]
[1768855989065,4.22067556,3216.4,3215.9,4.56134679]
[1768855989854,0.001,3216.1,3215.9,4.56134679]
[1768855992272,0.001,3216.1,3215.7,4.56134679]
[1768855993956,4.22087412,3216.1,3215.6,0.513]
[1768855994366,4.21987412,3216.0,3215.6,0.513]
[1768855995177,4.21987412,3216.0,3215.5,4.56134679]
[1768855995677,4.21987412,3216.0,3215.3,0.002]
[1768855995882,4.9528997,3216.0,3215.3,4.56334679]
[1768855997172,4.21987412,3215.9,3215.3,4.56334679]
[1768856000683,4.21987412,3215.8,3215.3,4.56334679]
[1768856001288,4.21987412,3215.8,3215.6,0.002]
[1768856002609,7.32953703,3215.8,3215.6,0.002]
[1768856002814,4.21987412,3215.7,3215.6,0.002]
[1768856005703,7.32961694,3215.7,3215.6,0.002]
[1768856006011,7.32961694,3215.7,3215.3,0.002]
[1768856006012,4.57615267,3215.6,3215.3,0.002]